bitfinex-derivatives/quotes_BNBF0:USTF0_20250510
["timestamp","ask_amount","ask_price","bid_price","bid_amount"]
[1746913302555,0.28028886,656.76,655.93,1.25042652]
[1746913302855,0.28028886,656.75,655.93,1.25042652]
[1746913303156,0.28028886,656.74,655.93,1.25042652]
[1746913303456,0.28028886,656.79,655.93,1.25042652]
[1746913303657,0.26524592,656.73,655.93,1.25042652]
[1746913304155,0.28028886,656.72,655.93,1.25042652]
[1746913305758,0.28028886,656.71,655.93,1.25042652]
[1746913306159,0.28028886,656.72,655.93,1.25042652]
[1746913306661,0.265253,656.71,655.93,1.25042652]
[1746913306961,0.28028886,656.7,655.93,1.25042652]
[1746913308461,0.28028886,656.69,655.93,1.25042652]
[1746913308760,0.28028886,656.7,655.93,1.25042652]
[1746913309555,0.26525502,656.69,655.93,1.25042652]
[1746913310261,0.28028886,656.68,655.93,1.25042652]
[1746913310655,0.26525502,656.69,655.93,1.25042652]
[1746913311062,0.28031902,656.68,655.93,1.25042652]
[1746913311461,0.28031902,656.67,655.93,1.25042652]
[1746913311862,0.28031902,656.66,655.93,1.25042652]
[1746913312364,0.28031902,656.65,655.93,1.25042652]
[1746913313064,0.28031902,656.64,655.93,1.25042652]
[1746913313565,0.28031902,656.63,655.93,1.25042652]
[1746913313870,0.28031902,656.62,655.93,1.25042652]
[1746913314270,0.28031902,656.61,655.93,1.25042652]
[1746913314566,0.28031902,656.6,655.93,1.25042652]
[1746913315072,0.28031902,656.68,655.93,1.25042652]
[1746913315372,0.28031902,656.67,655.93,1.25042652]
[1746913315671,0.28031902,656.66,655.93,1.25042652]
[1746913316072,0.28031902,656.65,655.93,1.25042652]
[1746913316472,0.28031902,656.64,655.93,1.25042652]
[1746913316673,0.54556393,656.64,655.93,1.25042652]
[1746913316971,0.28031902,656.63,655.93,1.25042652]
[1746913317371,0.28031902,656.62,655.93,1.25042652]
[1746913317672,0.28031902,656.61,655.93,1.25042652]
[1746913318072,0.28031902,656.6,655.93,1.25042652]
[1746913318474,0.28031902,656.59,655.93,1.25042652]
[1746913318672,0.28031902,656.58,655.93,1.25042652]
[1746913321377,1.98324059,657.11,655.93,1.25042652]
[1746913321577,0.26529344,656.57,655.93,1.25042652]
[1746913321876,0.84892809,657.1,655.93,1.25042652]
[1746913322078,0.84892809,657.1,655.93,0.29142652]
[1746913322277,0.28034958,657.09,655.93,0.29142652]
[1746913322577,0.28034958,657.08,655.93,0.29142652]
[1746913322778,0.54577961,657.08,655.93,0.29142652]
[1746913322978,0.28034958,657.07,655.93,0.29142652]
[1746913323477,0.28034958,657.06,655.93,0.29142652]
[1746913323675,0.28034958,657.05,655.93,0.29142652]
[1746913323982,0.28034958,657.04,655.93,0.29142652]
[1746913324376,0.28034958,657.03,655.93,0.29142652]
[1746913324880,0.28034958,657.02,655.93,0.29142652]
[1746913325478,0.28034958,657.01,655.93,0.29142652]
[1746913325778,0.28034958,657.0,655.93,0.29142652]
[1746913326079,0.28034958,656.99,655.93,0.29142652]
[1746913326581,0.28034958,656.98,655.93,0.29142652]
[1746913326881,0.28034958,656.97,655.93,0.29142652]
[1746913327181,0.28034958,657.07,655.9,0.999]
[1746913327677,0.26524693,657.06,655.9,0.999]
[1746913328181,0.28034958,657.05,655.9,0.999]
[1746913328680,0.28034958,657.04,655.9,0.999]
[1746913328977,0.28034958,657.03,655.9,0.999]
[1746913329480,0.28034958,657.02,655.9,0.999]
[1746913329780,0.28034958,657.01,655.9,0.999]
[1746913330080,0.28034958,657.0,655.9,0.999]
[1746913330281,0.28034958,656.99,655.9,0.999]
[1746913330682,0.26524693,657.06,655.9,0.999]
[1746913330683,0.28034958,656.98,655.9,0.999]
[1746913330980,1.98324059,657.04,655.9,0.999]
[1746913331484,0.84882591,657.03,655.9,0.999]
[1746913331882,0.28031555,657.02,655.9,0.999]
[1746913332384,0.28031555,657.01,655.9,0.999]
[1746913332584,0.28031555,657.0,655.9,0.999]
[1746913332887,1.98324059,656.94,655.9,0.999]
[1746913333385,0.84882591,656.93,655.9,0.999]
[1746913333588,1.11407689,656.93,655.9,0.999]
[1746913333791,0.28031555,656.92,655.9,0.999]
[1746913334081,0.28031555,656.91,655.9,0.999]
[1746913334386,0.28031555,656.9,655.9,0.999]
[1746913334686,0.28031555,656.89,655.9,0.999]
[1746913335187,0.28031555,656.88,655.9,0.999]
[1746913335588,0.28031555,656.87,655.9,0.999]
[1746913335884,0.28031555,656.86,655.9,0.999]
[1746913336389,0.28031555,656.85,655.9,0.999]
[1746913336693,0.28031555,656.84,655.9,0.999]
[1746913336988,0.28031555,656.83,655.9,0.999]
[1746913337490,0.28031555,656.82,655.9,0.999]
[1746913338189,0.28031555,656.81,655.9,0.999]
[1746913338490,0.28031555,656.8,655.9,0.999]
[1746913338789,0.28031555,656.79,655.9,0.999]
[1746913339198,0.28031555,656.78,655.9,0.999]
[1746913339492,0.28031555,656.77,655.9,0.999]
[1746913339786,0.28031555,656.76,655.9,0.999]
[1746913340791,0.28031555,656.75,655.9,0.999]
[1746913341191,0.28031555,656.76,655.9,0.999]
[1746913342893,0.28031555,657.1,655.9,0.999]
[1746913343489,0.28031555,657.09,655.9,0.999]
[1746913343793,0.54554934,657.09,655.9,0.999]
[1746913343989,0.28031555,657.08,655.9,0.999]
[1746913344293,0.28031555,657.07,655.9,0.999]
[1746913344494,0.28031555,657.06,655.9,0.999]
[1746913344794,0.28031555,657.06,655.9,0.437]
[1746913344989,0.28031555,657.05,655.9,0.437]
[1746913345294,0.28031555,657.04,655.9,0.437]
[1746913345695,0.28031555,657.03,655.9,0.437]
[1746913345893,0.28031555,657.02,655.9,0.437]
[1746913346290,0.28031555,657.01,655.9,0.437]
[1746913346796,0.28031555,657.0,655.9,0.437]
[1746913347091,0.28031555,656.99,655.9,0.437]
[1746913347399,0.28031555,656.98,655.9,0.437]
[1746913347696,0.26541586,657.01,655.9,0.437]
[1746913348096,0.28034089,657.0,655.9,0.437]
[1746913348494,0.28034089,656.99,655.9,0.437]
[1746913348695,0.28034089,656.98,655.91,0.697]
[1746913348996,0.28034089,656.97,655.91,0.697]
[1746913349395,0.28034089,656.96,655.91,0.697]
[1746913349695,0.28034089,656.95,655.91,0.697]
[1746913350090,0.28034089,656.94,655.91,0.697]
[1746913350296,0.28034089,656.93,655.91,0.697]
[1746913350596,0.28034089,656.92,655.91,0.697]
[1746913350896,0.28034089,656.91,655.91,0.697]
[1746913351198,0.28034089,656.9,655.91,0.697]
[1746913351393,0.28034089,656.9,655.92,0.576]
[1746913351594,0.28034089,656.89,655.92,0.576]
[1746913351795,0.28034089,656.88,655.92,0.576]
[1746913352098,0.28034089,656.87,655.92,0.576]
[1746913352598,0.28034089,656.86,655.92,0.576]
[1746913352899,0.28034089,656.85,655.92,0.576]
[1746913353200,0.26524491,656.9,655.92,0.576]
[1746913353599,0.28034497,656.89,655.92,0.576]
[1746913353899,0.28034497,656.88,655.92,0.576]
[1746913354495,0.28034497,656.87,655.92,0.576]
[1746913354697,0.54559797,656.87,655.92,0.576]
[1746913354895,0.28034497,656.86,655.92,0.576]
[1746913355195,0.28034497,656.85,655.92,0.576]
[1746913355494,0.265253,656.87,655.92,0.576]
[1746913355795,0.28034786,656.86,655.92,0.576]
[1746913356199,0.28034786,656.85,655.92,0.576]
[1746913356499,0.28034786,656.84,655.92,0.576]
[1746913356901,0.28034786,656.83,655.92,0.576]
[1746913357402,0.28034786,656.82,655.92,0.576]
[1746913357702,0.54560389,656.82,655.92,0.576]
[1746913358001,0.28034786,656.81,655.92,0.576]
[1746913358600,0.28034786,656.8,655.92,0.576]
[1746913359000,0.28034786,656.79,655.92,0.576]
[1746913359300,0.28034786,656.78,655.92,0.576]
[1746913359501,0.28034786,656.78,655.94,0.30490593]
[1746913359703,0.28034786,656.77,655.94,0.30490593]
[1746913360001,0.28034786,656.76,655.94,0.30490593]
[1746913360204,0.28034786,656.75,655.94,0.30490593]
[1746913360698,0.54560895,656.74,655.94,0.30490593]
[1746913361104,0.28034786,656.73,655.94,0.30490593]
[1746913361404,0.28034786,656.72,655.94,0.30490593]
[1746913361804,0.28034786,656.71,655.94,0.30490593]
[1746913362205,0.28034786,656.7,655.94,0.30490593]
[1746913362505,0.28034786,656.69,655.94,0.30490593]
[1746913362805,0.28034786,656.68,655.94,0.30490593]
[1746913363106,0.28034786,656.73,655.94,0.30490593]
[1746913366614,0.26526918,656.72,655.94,0.30490593]
[1746913367114,0.28034786,656.71,655.94,0.30490593]
[1746913367716,0.26526918,656.72,655.94,0.30490593]
[1746913368016,0.28033935,656.71,655.94,0.30490593]
[1746913369617,0.2652712,656.7,655.94,0.30490593]
[1746913370319,0.28033935,656.69,655.94,0.30490593]
[1746913372516,0.26527322,656.68,655.94,0.30490593]
[1746913372821,0.54561257,656.68,655.94,0.30490593]
[1746913373120,0.28033935,656.67,655.94,0.30490593]
[1746913373520,0.28033935,656.66,655.94,0.30490593]
[1746913373919,0.28033935,656.65,655.94,0.30490593]
[1746913374120,0.28033935,656.64,655.94,0.30490593]
[1746913374521,0.28033935,656.63,655.94,0.30490593]
[1746913374824,0.28033935,656.67,655.94,0.30490593]
[1746913375119,0.28033935,656.66,655.94,0.30490593]
[1746913375724,0.54561459,656.65,655.94,0.30490593]
[1746913375926,0.28033935,656.64,655.94,0.30490593]
[1746913376328,0.28033935,656.63,655.94,0.30490593]
[1746913377027,0.28033935,656.62,655.94,0.30490593]
[1746913377228,0.28033935,656.61,655.94,0.30490593]
[1746913377728,0.28033935,656.6,655.94,0.30490593]
[1746913378530,0.28033935,656.59,655.95,0.649]
[1746913378724,0.28033935,656.59,655.96,0.30489664]
[1746913378930,0.84889737,656.85,655.96,0.30489664]
[1746913379126,0.28033935,656.84,655.96,0.30489664]
[1746913379331,1.98324059,656.82,655.96,0.30489664]
[1746913379831,0.84889737,656.81,655.96,0.30489664]
[1746913380332,0.28033935,656.8,655.96,0.30489664]
[1746913380731,0.28033935,656.79,655.96,0.30489664]
[1746913381334,0.28033935,656.78,655.96,0.30489664]
[1746913381728,0.28033935,656.77,655.96,0.30489664]
[1746913382034,0.28033935,656.76,655.96,0.30489664]
[1746913382434,0.28033935,656.75,655.96,0.30489664]
[1746913382834,0.28033935,656.74,655.96,0.30489664]
[1746913383233,0.28033935,656.73,655.96,0.30489664]
[1746913383633,0.28033935,656.72,655.96,0.30489664]
[1746913383934,0.28033935,656.71,655.96,0.30489664]
[1746913384235,0.28033935,656.7,655.96,0.30489664]
[1746913384630,0.54560145,656.69,655.96,0.30489664]
[1746913385034,0.28033935,656.68,655.96,0.30489664]
[1746913385431,0.2652621,656.69,655.96,0.30489664]
[1746913385432,0.28033935,656.67,655.96,0.30489664]
[1746913385836,0.28033935,656.66,655.96,0.30489664]
[1746913386036,0.28033935,656.65,655.96,0.30489664]
[1746913386538,0.28033935,656.64,655.96,0.30489664]
[1746913386831,0.28033935,656.63,655.96,0.30489664]
[1746913387236,0.28033935,656.62,655.96,0.30489664]
[1746913387536,0.28033935,656.61,655.96,0.30489664]
[1746913387738,0.54561055,656.61,655.96,0.30489664]
[1746913387935,0.28033935,656.6,655.96,0.30489664]
[1746913388135,0.28033935,656.59,655.96,0.30489664]
[1746913388532,0.28033935,656.58,655.96,0.30489664]
[1746913389037,0.28033935,656.57,655.96,0.30489664]
[1746913389439,0.28033935,656.56,655.96,0.30489664]
[1746913389836,0.28033935,656.55,655.96,0.30489664]
[1746913390132,0.28033935,656.54,655.96,0.30489664]
[1746913390634,0.54561864,656.53,655.96,0.30489664]
[1746913390833,0.28033935,656.52,655.96,0.30489664]
[1746913391238,0.28033935,656.51,655.96,0.30489664]
[1746913392138,0.28033935,656.52,655.96,0.30489664]
[1746913392833,0.28033935,656.51,655.96,0.30489664]
[1746913393138,0.28033935,656.5,655.96,0.30489664]
[1746913393534,0.28033935,656.52,655.96,0.30489664]
[1746913393739,0.26528738,656.49,655.96,0.30489664]
[1746913394440,0.2803422,656.48,655.96,0.30489664]
[1746913394735,0.26528738,656.49,655.96,0.30489664]
[1746913395040,0.2803431,656.48,655.96,0.30489664]
[1746913395741,0.2803431,656.47,655.96,0.30489664]
[1746913396342,0.2803431,656.46,655.96,0.30489664]
[1746913396642,0.54563857,656.46,655.96,0.30489664]
[1746913396836,0.2803431,656.45,655.96,0.30489664]
[1746913399446,0.2803431,656.44,655.96,0.30489664]
[1746913399643,0.5456416,656.44,655.96,0.30489664]
[1746913399841,0.2652985,656.44,655.96,0.30489664]
[1746913400040,0.2803431,656.43,655.96,0.30489664]
[1746913405648,0.2653076,656.42,655.96,0.30489664]
[1746913405948,0.28036586,656.41,655.96,0.30489664]
[1746913408649,0.26530356,656.4,655.96,0.30489664]
[1746913409050,0.28036586,656.39,655.96,0.30489664]
[1746913411655,0.26530558,656.38,655.96,0.30489664]
[1746913412155,0.28036586,656.37,655.96,0.30489664]
[1746913414556,0.28036586,656.8,655.96,0.30489664]
[1746913414757,0.2653076,656.36,655.96,0.30489664]
[1746913414959,0.28036586,656.79,655.96,0.30489664]
[1746913415257,0.28036586,656.78,655.96,0.30489664]
[1746913415758,0.54562998,656.77,655.96,0.30489664]
[1746913416053,0.28036586,656.76,655.96,0.30489664]
[1746913416357,0.28036586,656.75,655.96,0.30489664]
[1746913417053,0.28036586,656.74,655.96,0.30489664]
[1746913417559,0.28036586,656.73,655.96,0.30489664]
[1746913417858,0.54563402,656.73,655.96,0.30489664]
[1746913418059,0.28036586,656.72,655.96,0.30489664]
[1746913418558,0.28036586,656.71,655.96,0.30489664]
[1746913418758,0.28036586,656.7,655.96,0.30489664]
[1746913419160,0.28036586,656.69,655.96,0.30489664]
[1746913419560,0.28036586,656.68,655.96,0.30489664]
[1746913419963,0.28036586,656.67,655.96,0.30489664]
[1746913420565,0.28036586,656.66,655.96,0.30489664]
[1746913420766,0.54563807,656.66,655.96,0.30489664]
[1746913421065,0.28036586,656.65,655.96,0.30489664]
[1746913421565,0.28036586,656.64,655.96,0.30489664]
[1746913421963,0.26527221,656.66,655.96,0.30489664]
[1746913422368,0.280366,656.65,655.96,0.30489664]
[1746913422765,0.280366,656.64,655.96,0.30489664]
[1746913423162,0.280366,656.63,655.96,0.30489664]
[1746913423569,0.280366,656.62,655.96,0.30489664]
[1746913423770,0.54564529,656.62,655.96,0.30489664]
[1746913423964,0.280366,656.61,655.96,0.30489664]
[1746913424269,0.280366,656.6,655.96,0.30489664]
[1746913424565,0.26527929,656.62,655.96,0.30489664]
[1746913424969,0.28036597,656.61,655.96,0.30489664]
[1746913425569,0.28036597,656.6,655.96,0.30489664]
[1746913425769,0.28036597,656.59,655.96,0.30489664]
[1746913426069,0.28036597,656.58,655.96,0.30489664]
[1746913426369,0.28036597,656.57,655.96,0.30489664]
[1746913426568,0.5456493,656.57,655.96,0.30489664]
[1746913426769,0.28036597,656.56,655.96,0.30489664]
[1746913429772,0.26526513,656.55,655.96,0.30489664]
[1746913430268,0.28036597,656.54,655.96,0.30489664]
[1746913432771,0.26524896,656.53,655.96,0.30489664]
[1746913433075,0.28036597,656.52,655.96,0.30489664]
[1746913433975,0.28036597,656.52,655.97,0.58]
[1746913434276,0.28036597,656.52,655.98,0.30488734]
[1746913435878,0.26522268,656.51,655.98,0.30488734]
[1746913436277,0.28036597,656.5,655.98,0.30488734]
[1746913438679,0.2652712,656.49,655.98,0.30488734]
[1746913438976,0.28036597,656.48,655.98,0.30488734]
[1746913441682,0.26526311,656.47,655.98,0.30488734]
[1746913442280,0.28036597,656.46,655.98,0.30488734]
[1746913443883,0.26526311,656.47,655.98,0.30488734]
[1746913444184,0.28033738,656.46,655.98,0.30488734]
[1746913444901,1.98324059,656.94,655.98,0.30488734]
[1746913445385,0.84889144,656.93,655.98,0.30488734]
[1746913445686,1.11411917,656.93,655.98,0.30488734]
[1746913445984,0.28033738,656.92,655.98,0.30488734]
[1746913446682,0.28033738,656.91,655.98,0.30488734]
[1746913447285,0.28033738,656.9,655.98,0.30488734]
[1746913447785,0.28033738,656.89,655.98,0.30488734]
[1746913448085,0.26522773,656.93,655.98,0.30488734]
[1746913448483,0.28033058,656.92,655.98,0.30488734]
[1746913448882,0.28033058,656.91,655.98,0.30488734]
[1746913449187,0.28033058,656.9,655.98,0.30488734]
[1746913449487,1.98324059,656.78,655.98,0.30488734]
[1746913449986,0.84887103,656.77,655.98,0.30488734]
[1746913450283,0.28033058,656.76,655.98,0.30488734]
[1746913450883,0.28033058,656.75,655.98,0.30488734]
[1746913451291,0.28033058,656.74,655.98,0.30488734]
[1746913451688,0.28033058,656.73,655.98,0.30488734]
[1746913453792,1.98324059,656.83,655.98,0.30488734]
[1746913453989,0.26524592,656.72,655.98,0.30488734]
[1746913454187,0.84887269,656.82,655.98,0.30488734]
[1746913454494,0.28033114,656.71,655.98,0.30488734]
[1746913454888,0.26523784,656.7,655.98,0.30488734]
[1746913455391,0.28033114,656.69,655.98,0.30488734]
[1746913456696,0.26524997,656.68,655.98,0.30488734]
[1746913456990,0.28033114,656.67,655.98,0.30488734]
[1746913457298,0.28033114,656.66,655.98,0.30488734]
[1746913457596,0.26524997,656.68,655.98,0.30488734]
[1746913457897,0.28031324,656.67,655.98,0.30488734]
[1746913458193,2.26355383,656.67,655.98,0.30488734]
[1746913458397,0.84881894,656.66,655.98,0.30488734]
[1746913458697,0.28031324,656.65,655.98,0.30488734]
[1746913459098,0.28031324,656.64,655.98,0.30488734]
[1746913459597,0.28031324,656.63,655.98,0.30488734]
[1746913459897,0.28031324,656.62,655.98,0.30488734]
[1746913460196,0.28031324,656.61,655.98,0.30488734]
[1746913460699,0.28031324,656.6,655.98,0.30488734]
[1746913460900,0.54555815,656.6,655.98,0.30488734]
[1746913461095,0.28031324,656.59,655.98,0.30488734]
[1746913461497,0.28031324,656.58,655.98,0.30488734]
[1746913461896,0.28031324,656.57,655.98,0.30488734]
[1746913462397,0.28031324,656.59,655.98,0.30488734]
[1746913462998,0.28031324,656.58,655.98,0.30488734]
[1746913463396,0.28031324,656.57,655.98,0.30488734]
[1746913463693,0.54554198,656.57,655.98,0.30488734]
[1746913463999,0.28031324,656.56,655.98,0.30488734]
[1746913464297,0.28031324,656.55,655.98,0.30488734]
[1746913464897,0.28031324,656.54,655.98,0.30488734]
[1746913465199,0.28031324,656.53,655.98,0.30488734]
[1746913465596,0.28031324,656.52,655.98,0.30488734]
[1746913465897,0.28031324,656.56,655.98,0.30488734]
[1746913467298,0.26522874,656.57,655.98,0.30488734]
[1746913467793,0.28026891,656.56,655.98,0.30488734]
[1746913468697,0.26524693,656.55,655.98,0.30488734]
[1746913469298,0.28026891,656.54,655.98,0.30488734]
[1746913469593,0.28026891,656.54,655.99,0.508]
[1746913469798,0.28026891,656.54,656.0,0.30487804]
[1746913471698,0.26524491,656.53,656.0,0.30487804]
[1746913472100,0.28026891,656.52,656.0,0.30487804]
[1746913474707,0.28026891,657.02,656.0,0.30487804]
[1746913474900,0.26524693,656.51,656.0,0.30487804]
[1746913475120,0.28026891,657.01,656.0,0.30487804]
[1746913475502,0.28026891,657.0,656.0,0.30487804]
[1746913475808,0.28026891,656.99,656.0,0.30487804]
[1746913476208,0.28026891,656.98,656.0,0.30487804]
[1746913476504,0.28026891,656.97,656.0,0.30487804]
[1746913476808,0.28026891,656.96,656.0,0.30487804]
[1746913477204,0.28026891,656.95,656.0,0.30487804]
[1746913477609,0.28026891,656.94,656.0,0.30487804]
[1746913477811,0.54546834,656.94,656.0,0.30487804]
[1746913478010,0.28026891,656.93,656.0,0.30487804]
[1746913478413,0.28026891,656.92,656.0,0.30487804]
[1746913478811,0.28026891,656.91,656.0,0.30487804]
[1746913479213,0.28026891,656.9,656.0,0.30487804]
[1746913479608,0.28026891,656.89,656.0,0.30487804]
[1746913480113,0.28026891,656.88,656.0,0.30487804]
[1746913480614,0.28026891,656.87,656.0,0.30487804]
[1746913480815,0.54547441,656.87,656.0,0.30487804]
[1746913481014,0.28026891,656.86,656.0,0.30487804]
[1746913481215,0.28026891,656.85,656.0,0.30487804]
[1746913481716,0.28026891,656.84,656.0,0.30487804]
[1746913482114,0.28026891,656.83,656.0,0.30487804]
[1746913482411,0.28026891,656.82,656.0,0.30487804]
[1746913482715,0.28026891,656.81,656.0,0.30487804]
[1746913483217,0.28026891,656.8,656.0,0.30487804]
[1746913483718,0.54546531,656.79,656.0,0.30487804]
[1746913484119,0.28026891,656.78,656.0,0.30487804]
[1746913484518,0.28026891,656.77,656.0,0.30487804]
[1746913484819,0.28026891,656.76,656.0,0.30487804]
[1746913485216,0.28026891,656.78,656.0,0.30487804]
[1746913486719,0.28026891,656.77,656.0,0.30487804]
[1746913487019,0.28026891,656.76,656.0,0.30487804]
[1746913487521,0.28026891,657.13,656.0,0.30487804]
[1746913487721,0.26516912,656.75,656.0,0.30487804]
[1746913488123,0.28026891,657.12,656.0,0.30487804]
[1746913488424,0.28026891,656.74,656.0,0.30487804]
[1746913488721,0.28026891,657.11,656.0,0.30487804]
[1746913489017,0.28026891,657.1,656.0,0.30487804]
[1746913489422,0.28026891,657.09,656.0,0.30487804]
[1746913489822,0.28026891,657.08,656.0,0.30487804]
[1746913490123,0.28026891,657.07,656.0,0.30487804]
[1746913490422,0.28026891,657.06,656.0,0.30487804]
[1746913490822,0.28026891,657.05,656.0,0.30487804]
[1746913491120,0.28026891,657.04,656.0,0.30487804]
[1746913491419,0.28026891,657.03,656.0,0.30487804]
[1746913491720,0.28026891,657.02,656.0,0.30487804]
[1746913492226,0.28026891,657.01,656.01,0.686]
[1746913492423,0.28026891,657.01,656.03,0.3048641]
[1746913492721,0.28026891,657.0,656.03,0.3048641]
[1746913492922,0.54544005,657.0,656.03,0.3048641]
[1746913493121,0.28026891,656.99,656.03,0.3048641]
[1746913493325,0.28026891,656.98,656.03,0.3048641]
[1746913493620,0.28026891,656.97,656.03,0.3048641]
[1746913494126,0.28026891,656.96,656.03,0.3048641]
[1746913494528,0.28026891,656.95,656.03,0.3048641]
[1746913494827,0.28026891,656.94,656.03,0.3048641]
[1746913495322,0.28026891,656.93,656.04,0.627]
[1746913495526,0.28026891,656.93,656.06,0.30485016]
[1746913495726,0.54546228,656.93,656.06,0.30485016]
[1746913495922,0.28026891,656.92,656.06,0.30485016]
[1746913496226,0.28026891,656.91,656.06,0.30485016]
[1746913496926,0.28026891,656.9,656.06,0.30485016]
[1746913497228,0.28026891,656.89,656.06,0.30485016]
[1746913497625,0.28026891,656.88,656.06,0.30485016]
[1746913497823,0.26519337,656.93,656.06,0.30485016]
[1746913498227,0.28024876,656.92,656.06,0.30485016]
[1746913498730,0.28024876,656.91,656.06,0.30485016]
[1746913499227,0.28024876,656.9,656.06,0.30485016]
[1746913499529,0.28024876,656.89,656.06,0.30485016]
[1746913499830,0.28024876,656.88,656.06,0.30485016]
[1746913500227,0.28024876,656.87,656.06,0.30485016]
[1746913500432,0.28024876,656.86,656.06,0.30485016]
[1746913500931,0.28024876,656.85,656.06,0.30485016]
[1746913501232,0.28024876,656.84,656.06,0.30485016]
[1746913501727,0.54543809,656.83,656.06,0.30485016]
[1746913501925,0.28024876,656.82,656.06,0.30485016]
[1746913502527,0.26518933,656.83,656.06,0.30485016]
[1746913503023,0.28025785,656.82,656.06,0.30485016]
[1746913503426,0.28025785,656.81,656.06,0.30485016]
[1746913503633,0.28025785,656.8,656.06,0.30485016]
[1746913504035,0.28025785,656.82,656.06,0.30485016]
[1746913504436,0.28025785,656.81,656.06,0.30485016]
[1746913504728,0.54546941,656.81,656.06,0.30485016]
[1746913504932,0.28025785,656.8,656.06,0.30485016]
[1746913505733,0.28025785,656.79,656.06,0.30485016]
[1746913506130,0.28025785,656.78,656.06,0.30485016]
[1746913506535,0.28025785,656.77,656.06,0.30485016]
[1746913506930,0.28025785,656.76,656.06,0.30485016]
[1746913507635,0.28025785,656.8,656.06,0.30485016]
[1746913507936,0.28025785,656.79,656.06,0.30485016]
[1746913508236,0.26521156,656.81,656.06,0.30485016]
[1746913508237,0.28025785,656.78,656.06,0.30485016]
[1746913508536,0.28025785,656.8,656.06,0.30485016]
[1746913508831,0.28025785,656.79,656.06,0.30485016]
[1746913509136,0.28025785,656.78,656.06,0.30485016]
[1746913509432,0.28025785,656.77,656.06,0.30485016]
[1746913509733,0.28025785,656.76,656.06,0.30485016]
[1746913510438,0.28025785,656.8,656.06,0.30485016]
[1746913510632,0.26519943,656.75,656.06,0.30485016]
[1746913511033,0.28025785,656.74,656.06,0.30485016]
[1746913512438,0.26519943,656.75,656.06,0.30485016]
[1746913512840,0.28024785,656.74,656.06,0.30485016]
[1746913513734,0.28024785,657.06,656.06,0.30485016]
[1746913513939,0.2652055,656.73,656.06,0.30485016]
[1746913514137,0.28024785,657.06,656.06,0.30485016]
[1746913514336,0.28024785,657.05,656.06,0.30485016]
[1746913514841,0.28024785,657.04,656.06,0.30485016]
[1746913515342,0.5683748,657.07,656.06,0.30485016]
[1746913515343,0.26517316,657.03,656.06,0.30485016]
[1746913515642,0.28024722,657.02,656.06,0.30485016]
[1746913516044,0.28024722,657.01,656.06,0.30485016]
[1746913516344,0.28024722,657.0,656.06,0.30485016]
[1746913516743,0.28024722,656.99,656.06,0.30485016]
[1746913516945,2.26348781,656.99,656.06,0.30485016]
[1746913517239,0.28024722,656.98,656.06,0.30485016]
[1746913517540,0.28024722,656.97,656.06,0.30485016]
[1746913517945,1.98324059,656.99,656.06,0.30485016]
[1746913518245,0.84862426,656.98,656.06,0.30485016]
[1746913518440,0.28024839,656.97,656.06,0.30485016]
[1746913518648,1.98324059,656.82,656.06,0.30485016]
[1746913519148,0.84862426,656.81,656.06,0.30485016]
[1746913519644,0.28024839,656.8,656.06,0.30485016]
[1746913519847,0.28024839,656.79,656.06,0.30485016]
[1746913520249,0.28024839,656.78,656.06,0.30485016]
[1746913520744,0.54544782,656.77,656.06,0.30485016]
[1746913521249,0.28024839,656.76,656.06,0.30485016]
[1746913522749,0.26519943,656.75,656.06,0.30485016]
[1746913523449,0.28024839,656.74,656.06,0.30485016]
[1746913526754,0.26519943,656.75,656.06,0.30485016]
[1746913527046,0.28014509,656.74,656.06,0.30485016]
[1746913527252,0.28014509,656.74,656.06,0.87085016]
[1746913529752,0.26519943,656.75,656.06,0.87085016]
[1746913530053,0.2801627,656.74,656.06,0.87085016]
[1746913531754,0.2651671,656.73,656.06,0.87085016]
[1746913532055,0.2801627,656.72,656.06,0.87085016]
[1746913535758,0.2651671,656.73,656.06,0.87085016]
[1746913536257,0.28016291,656.72,656.06,0.87085016]
[1746913540762,0.26516912,656.71,656.06,0.87085016]
[1746913541060,0.28016291,656.7,656.06,0.87085016]
[1746913541561,0.28016291,656.7,656.06,1.48785016]
[1746913546969,0.28016291,657.36,656.06,1.48785016]
[1746913547368,0.28016291,657.35,656.06,1.48785016]
[1746913547669,0.54526739,657.35,656.06,1.48785016]
[1746913547869,0.28016291,657.34,656.06,1.48785016]
[1746913548268,0.28016291,657.33,656.06,1.48785016]
[1746913548770,0.28016291,657.32,656.06,1.48785016]
[1746913548967,0.28016291,657.31,656.06,1.48785016]
[1746913549370,0.28016291,657.3,656.06,1.48785016]
[1746913550070,0.28016291,657.29,656.06,1.48785016]
[1746913550471,0.28016291,657.28,656.06,1.48785016]
[1746913550770,0.28016291,657.27,656.06,1.48785016]
[1746913551170,0.28016291,657.26,656.06,1.48785016]
[1746913551670,0.28016291,657.25,656.06,1.48785016]
[1746913551871,0.28016291,657.24,656.06,1.48785016]
[1746913552372,0.28016291,657.23,656.06,1.48785016]